fUST/lending_fUST_20250905
["ID","MTS","AMOUNT","RATE_DAILY","PERIOD"]
[383659354,1757075458427,-480.0,0.0001589,2]
[383659355,1757075458437,-480.0,0.0001589,2]
[383659356,1757075458451,-480.0,0.0001589,2]
[383659357,1757075458462,-480.0,0.0001589,2]
[383659358,1757075458472,-480.0,0.0001589,2]
[383659359,1757075458481,-480.0,0.0001589,2]
[383659360,1757075458491,-480.0,0.0001589,2]
[383659361,1757075458502,-480.0,0.0001589,2]
[383659362,1757075458512,-480.0,0.0001589,2]
[383659363,1757075458522,-480.0,0.0001589,2]
[383659364,1757075458531,-480.0,0.0001589,2]
[383659365,1757075458541,-165.52487969,0.0001589,2]
[383659366,1757075458551,-480.0,0.0001589,2]
[383659367,1757075458561,-480.0,0.0001589,2]
[383659368,1757075458571,-480.0,0.0001589,2]
[383659369,1757075458582,-1223.58,0.0001589,2]
[383659370,1757075458593,-999.05,0.0001589,2]
[383659371,1757075458604,-480.0,0.0001589,2]
[383659372,1757075458614,-480.0,0.0001589,2]
[383659373,1757075458625,-671.71,0.0001589,2]
[383659374,1757075458635,-480.0,0.0001589,2]
[383659375,1757075458646,-480.0,0.0001589,2]
[383659376,1757075458655,-480.0,0.0001589,2]
[383659377,1757075458665,-678.74,0.0001589,2]
[383659378,1757075458675,-480.0,0.0001589,2]
[383659379,1757075458684,-480.0,0.0001589,2]
[383659380,1757075458694,-2044.8,0.0001589,2]
[383659381,1757075458709,-480.0,0.0001589,2]
[383659382,1757075458719,-2092.37,0.0001589,2]
[383659383,1757075458728,-480.0,0.0001589,2]
[383659384,1757075458738,-455.32931563,0.0001589,2]
[383659385,1757075458749,-480.0,0.0001589,2]
[383659386,1757075458758,-994.51,0.0001589,2]
[383659387,1757075458768,-480.0,0.0001589,2]
[383659388,1757075458777,-26539.06,0.0001589,2]
[383659389,1757075458786,-480.0,0.0001589,2]
[383659390,1757075458797,-573.14,0.0001589,2]
[383659391,1757075458808,-712.09,0.0001589,2]
[383659392,1757075458818,-594.29,0.0001589,2]
[383659393,1757075458828,-480.0,0.0001589,2]
[383659394,1757075458839,-852.19,0.0001589,2]
[383659395,1757075458849,-613.91,0.0001589,2]
[383659396,1757075458859,-533.76,0.0001589,2]
[383659397,1757075458869,-1498.59,0.0001589,2]
[383659398,1757075458878,-480.0,0.0001589,2]
[383659399,1757075458889,-953.92,0.0001589,2]
[383659400,1757075458899,-480.0,0.0001589,2]
[383659401,1757075458909,-480.0,0.0001589,2]
[383659402,1757075458920,-480.0,0.0001589,2]
[383659403,1757075458931,-874.79,0.0001589,2]
[383659404,1757075458941,-1760.8,0.0001589,2]
[383659405,1757075458958,-480.0,0.0001589,2]
[383659406,1757075458968,-480.0,0.0001589,2]
[383659407,1757075458979,-686.15,0.0001589,2]
[383659408,1757075458989,-261.76938777,0.0001589,2]
[383659409,1757075458999,-480.0,0.0001589,2]
[383659410,1757075459009,-549.32,0.0001589,2]
[383659411,1757075459020,-480.0,0.0001589,2]
[383659412,1757075459031,-822.53,0.0001589,2]
[383659413,1757075459042,-670.03,0.0001589,2]
[383659414,1757075459053,-480.0,0.0001589,2]
[383659415,1757075459063,-1246.01,0.0001589,2]
[383659416,1757075459074,-1077.96,0.0001589,2]
[383659417,1757075459084,-4312.6,0.0001589,2]
[383659418,1757075459094,-480.0,0.0001589,2]
[383659419,1757075459104,-1516.1437105,0.00015913,2]
[383659420,1757075459115,-262.66685155,0.00015925,2]
[383659421,1757075459125,-1542.4183276,0.00015953,2]
[383659422,1757075459134,-497.0,0.00016164,2]
[383659423,1757075459144,-480.0,0.00016164,2]
[383659424,1757075459154,-480.0,0.00016164,2]
[383659425,1757075459164,-480.0,0.00016164,2]
[383659426,1757075459174,-480.0,0.00016164,2]
[383659427,1757075459183,-480.0,0.00016164,2]
[383659428,1757075459279,-480.0,0.00016164,2]
[383659429,1757075459293,-480.0,0.00016164,2]
[383659430,1757075459305,-480.0,0.00016164,2]
[383659431,1757075459315,-480.0,0.00016164,2]
[383659432,1757075459325,-439.65,0.00016164,2]
[383659433,1757075459334,-480.0,0.00016164,2]
[383659434,1757075459344,-480.0,0.00016164,2]
[383659435,1757075459354,-344.92436419,0.00016164,2]
[383659436,1757075459364,-480.0,0.00016164,2]
[383659437,1757075459375,-480.0,0.00016164,2]
[383659438,1757075459385,-1223.58,0.00016164,2]
[383659439,1757075459395,-999.05,0.00016164,2]
[383659440,1757075459405,-480.0,0.00016164,2]
[383659441,1757075459414,-480.0,0.00016164,2]
[383659442,1757075459424,-671.71,0.00016164,2]
[383659443,1757075459435,-480.0,0.00016164,2]
[383659444,1757075459445,-534.72381468,0.00016164,2]
[383659445,1757075459458,-480.0,0.00016164,2]
[383659446,1757075459468,-678.74,0.00016164,2]
[383659447,1757075459478,-480.0,0.00016164,2]
[383659448,1757075459488,-480.0,0.00016164,2]
[383659449,1757075459498,-2044.8,0.00016164,2]
[383659450,1757075459509,-480.0,0.00016164,2]
[383659451,1757075459519,-2092.37,0.00016164,2]
[383659452,1757075459528,-480.0,0.00016164,2]
[383659453,1757075459538,-480.0,0.00016164,2]
[383659454,1757075459547,-994.51,0.00016164,2]
[383659455,1757075459557,-480.0,0.00016164,2]
[383659456,1757075459567,-26539.06,0.00016164,2]
[383659457,1757075459577,-480.0,0.00016164,2]
[383659458,1757075459589,-573.14,0.00016164,2]
[383659459,1757075459599,-594.29,0.00016164,2]
[383659460,1757075459609,-712.09,0.00016164,2]
[383659461,1757075459619,-480.0,0.00016164,2]
[383659462,1757075459629,-852.19,0.00016164,2]
[383659463,1757075459640,-613.91,0.00016164,2]
[383659464,1757075459650,-533.76,0.00016164,2]
[383659465,1757075459662,-1498.59,0.00016164,2]
[383659466,1757075459672,-480.0,0.00016164,2]
[383659467,1757075459683,-953.92,0.00016164,2]
[383659468,1757075459694,-480.0,0.00016164,2]
[383659469,1757075459709,-480.0,0.00016164,2]
[383659470,1757075459719,-480.0,0.00016164,2]
[383659471,1757075459730,-874.79,0.00016164,2]
[383659472,1757075459740,-1760.8,0.00016164,2]
[383659473,1757075459751,-243.94819392,0.00016164,2]
[383659474,1757075459761,-480.0,0.00016164,2]
[383659475,1757075459771,-686.15,0.00016164,2]
[383659476,1757075459782,-480.0,0.00016164,2]
[383659477,1757075459793,-549.32,0.00016164,2]
[383659478,1757075459803,-480.0,0.00016164,2]
[383659479,1757075459814,-822.53,0.00016164,2]
[383659480,1757075459825,-670.03,0.00016164,2]
[383659481,1757075459835,-480.0,0.00016164,2]
[383659482,1757075459845,-1246.01,0.00016164,2]
[383659483,1757075459855,-1077.96,0.00016164,2]
[383659484,1757075459865,-4312.6,0.00016164,2]
[383659485,1757075459875,-480.0,0.00016164,2]
[383659486,1757075459885,-2500.0,0.00016164,2]
[383659487,1757075459895,-1001.27148895,0.00016168,2]
[383659488,1757075459905,-1000.90677993,0.00016168,2]
[383659489,1757075459915,-502.46191842,0.00016168,2]
[383659490,1757075459925,-500.55798341,0.00016168,2]
[383659491,1757075459935,-1200.50179936,0.00016168,2]
[383659492,1757075459946,-501.06322566,0.00016168,2]
[383659493,1757075459961,-1001.52644314,0.00016168,2]
[383659494,1757075459971,-470.57195319,0.00016168,2]
[383659495,1757075459982,-502.52869726,0.00016168,2]
[383659496,1757075459992,-1500.0,0.00016168,2]
[383659497,1757075460003,-231.47878642,0.00016168,2]
[383659498,1757075460014,-501.66046744,0.00016168,2]
[383659499,1757075460025,-503.18144899,0.00016168,2]
[383659500,1757075460035,-500.65359592,0.00016168,2]
[383659501,1757075460046,-162.01649981,0.00016168,2]
[383659502,1757075460058,-502.36839475,0.00016168,2]
[383659503,1757075460069,-2500.0,0.00016264,2]
[383659504,1757075460080,-497.0,0.00016438,2]
[383659505,1757075460090,-480.0,0.00016438,2]
[383659506,1757075460101,-189.74994499,0.00016438,2]
[383659507,1757075460111,-480.0,0.00016438,2]
[383659508,1757075460121,-480.0,0.00016438,2]
[383659509,1757075460132,-480.0,0.00016438,2]
[383659510,1757075460143,-480.0,0.00016438,2]
[383659511,1757075460153,-480.0,0.00016438,2]
[383659512,1757075460163,-480.0,0.00016438,2]
[383659513,1757075460173,-480.0,0.00016438,2]
[383659514,1757075460183,-480.0,0.00016438,2]
[383659515,1757075460194,-480.0,0.00016438,2]
[383659516,1757075460210,-480.0,0.00016438,2]
[383659517,1757075460221,-480.0,0.00016438,2]
[383659518,1757075460232,-480.0,0.00016438,2]
[383659519,1757075460242,-1223.58,0.00016438,2]
[383659520,1757075460252,-999.05,0.00016438,2]
[383659521,1757075460267,-480.0,0.00016438,2]
[383659522,1757075460276,-480.0,0.00016438,2]
[383659523,1757075460287,-671.71,0.00016438,2]
[383659524,1757075460298,-480.0,0.00016438,2]
[383659525,1757075460308,-480.0,0.00016438,2]
[383659526,1757075460318,-678.74,0.00016438,2]
[383659527,1757075460328,-480.0,0.00016438,2]
[383659528,1757075460338,-480.0,0.00016438,2]
[383659529,1757075460348,-2044.8,0.00016438,2]
[383659530,1757075460358,-480.0,0.00016438,2]
[383659531,1757075460369,-2092.37,0.00016438,2]
[383659532,1757075460379,-480.0,0.00016438,2]
[383659533,1757075460389,-480.0,0.00016438,2]
[383659534,1757075460399,-994.51,0.00016438,2]
[383659535,1757075460409,-480.0,0.00016438,2]
[383659536,1757075460419,-26539.06,0.00016438,2]
[383659537,1757075460429,-480.0,0.00016438,2]
[383659538,1757075460439,-573.14,0.00016438,2]
[383659539,1757075460455,-594.29,0.00016438,2]
[383659540,1757075460465,-712.09,0.00016438,2]
[383659541,1757075460476,-480.0,0.00016438,2]
[383659542,1757075460487,-852.19,0.00016438,2]
[383659543,1757075460499,-613.91,0.00016438,2]
[383659544,1757075460510,-533.76,0.00016438,2]
[383659545,1757075460522,-1498.59,0.00016438,2]
[383659546,1757075460533,-480.0,0.00016438,2]
[383659547,1757075460543,-953.92,0.00016438,2]
[383659548,1757075460553,-480.0,0.00016438,2]
[383659549,1757075460563,-480.0,0.00016438,2]
[383659550,1757075460574,-480.0,0.00016438,2]
[383659551,1757075460585,-874.79,0.00016438,2]
[383659552,1757075460595,-1760.8,0.00016438,2]
[383659553,1757075460605,-480.0,0.00016438,2]
[383659554,1757075460614,-686.15,0.00016438,2]
[383659555,1757075460624,-480.0,0.00016438,2]
[383659556,1757075460634,-549.32,0.00016438,2]
[383659557,1757075460644,-480.0,0.00016438,2]
[383659558,1757075460654,-822.53,0.00016438,2]
[383659559,1757075460665,-670.03,0.00016438,2]
[383659560,1757075460675,-480.0,0.00016438,2]
[383659561,1757075460686,-1246.01,0.00016438,2]
[383659562,1757075460696,-1077.96,0.00016438,2]
[383659563,1757075460712,-4312.6,0.00016438,2]
[383659564,1757075460722,-480.0,0.00016438,2]
[383659565,1757075460731,-151.0,0.00016438,2]
[383659566,1757075460741,-152.994477,0.00016438,2]
[383659567,1757075460751,-151.894611,0.00016438,2]
[383659568,1757075460761,-154.614841,0.00016438,2]
[383659569,1757075460771,-587.0,0.00016439,2]
[383659570,1757075460781,-344.1600484,0.00016456,2]
[383659571,1757075460791,-497.0,0.00016712,2]
[383659572,1757075460802,-480.0,0.00016712,2]
[383659573,1757075460811,-480.0,0.00016712,2]
[383659574,1757075460821,-480.0,0.00016712,2]
[383659575,1757075460831,-292.53391455,0.00016712,2]
[383659576,1757075460841,-243.23805239,0.00016712,2]
[383659577,1757075460851,-480.0,0.00016712,2]
[383659578,1757075460861,-523.5661404,0.00016712,2]
[383659579,1757075460871,-480.0,0.00016712,2]
[383659580,1757075460881,-480.0,0.00016712,2]
[383659581,1757075460891,-281.59143024,0.00016712,2]
[383659582,1757075460901,-619.7725762,0.00016712,2]
[383659583,1757075460911,-480.0,0.00016712,2]
[383659584,1757075460921,-480.0,0.00016712,2]
[383659585,1757075460931,-1223.58,0.00016712,2]
[383659586,1757075460941,-999.05,0.00016712,2]
[383659587,1757075460955,-481.48,0.00016712,2]
[383659588,1757075460966,-480.0,0.00016712,2]
[383659589,1757075460976,-671.71,0.00016712,2]
[383659590,1757075460986,-480.0,0.00016712,2]
[383659591,1757075460996,-480.0,0.00016712,2]
[383659592,1757075461007,-678.74,0.00016712,2]
[383659593,1757075461017,-480.0,0.00016712,2]
[383659594,1757075461027,-480.0,0.00016712,2]
[383659595,1757075461037,-2044.8,0.00016712,2]
[383659596,1757075461047,-480.0,0.00016712,2]
[383659597,1757075461057,-2092.37,0.00016712,2]
[383659598,1757075461067,-480.0,0.00016712,2]
[383659599,1757075461077,-480.0,0.00016712,2]
[383659600,1757075461087,-994.51,0.00016712,2]
[383659601,1757075461097,-480.0,0.00016712,2]
[383659602,1757075461106,-26539.06,0.00016712,2]
[383659603,1757075461116,-480.0,0.00016712,2]
[383659604,1757075461126,-573.14,0.00016712,2]
[383659605,1757075461136,-594.29,0.00016712,2]
[383659606,1757075461146,-712.09,0.00016712,2]
[383659607,1757075461243,-480.0,0.00016712,2]
[383659608,1757075461254,-852.19,0.00016712,2]
[383659609,1757075461268,-613.91,0.00016712,2]
[383659610,1757075461281,-533.76,0.00016712,2]
[383659611,1757075461291,-1498.59,0.00016712,2]
[383659612,1757075461303,-183.10971224,0.00016712,2]
[383659613,1757075461314,-953.92,0.00016712,2]
[383659614,1757075461324,-480.0,0.00016712,2]
[383659615,1757075461335,-480.0,0.00016712,2]
[383659616,1757075461346,-585.41891932,0.00016712,2]
[383659617,1757075461356,-874.79,0.00016712,2]
[383659618,1757075461367,-1760.8,0.00016712,2]
[383659619,1757075461377,-480.0,0.00016712,2]
[383659620,1757075461386,-686.15,0.00016712,2]
[383659621,1757075461397,-480.0,0.00016712,2]
[383659622,1757075461407,-549.32,0.00016712,2]
[383659623,1757075461417,-480.0,0.00016712,2]
[383659624,1757075461427,-822.53,0.00016712,2]
[383659625,1757075461437,-670.03,0.00016712,2]
[383659626,1757075461447,-480.0,0.00016712,2]
[383659627,1757075461463,-1246.01,0.00016712,2]
[383659628,1757075461473,-1077.96,0.00016712,2]
[383659629,1757075461482,-4312.6,0.00016712,2]
[383659630,1757075461491,-480.0,0.00016712,2]
[383659631,1757075461502,-3000.0,0.00016712,2]
[383659632,1757075461512,-2000.0,0.00016716,2]
[383659633,1757075461522,-2216.68155098,0.00016721,7]
[383659634,1757075461532,-12500.0,0.00016737,7]
[383659635,1757075461542,-160.0,0.0001674,7]
[383659636,1757075461552,-12500.0,0.00016742,7]
[383659637,1757075461562,-12500.0,0.00016742,7]
[383659638,1757075461572,-12500.0,0.00016746,7]
[383659639,1757075461582,-160.0,0.0001675,7]
[383659640,1757075461594,-12500.0,0.00016755,7]
[383659641,1757075461603,-12500.0,0.00016756,7]
[383659642,1757075461613,-500.0,0.00016812,2]
[383659643,1757075461625,-426.08730936,0.00016886,2]
[383659644,1757075461637,-400.0,0.00016888,2]
[383659645,1757075461648,-975.0,0.00016893,2]
[383659646,1757075461660,-409.0,0.00016893,2]
[383659647,1757075461672,-864.0,0.00016905,2]
[383659648,1757075461684,-497.0,0.00016986,2]
[383659649,1757075461694,-480.0,0.00016986,2]
[383659650,1757075461712,-480.0,0.00016986,2]
[383659651,1757075461724,-480.0,0.00016986,2]
[383659652,1757075461735,-509.35281166,0.00016986,2]
[383659653,1757075461746,-480.0,0.00016986,2]
[383659654,1757075461758,-480.0,0.00016986,2]
[383659655,1757075461769,-480.0,0.00016986,2]
[383659656,1757075461780,-480.0,0.00016986,2]
[383659657,1757075461792,-1223.58,0.00016986,2]
[383659658,1757075461803,-999.05,0.00016986,2]
[383659659,1757075461814,-480.0,0.00016986,2]
[383659660,1757075461825,-671.71,0.00016986,2]
[383659661,1757075461836,-480.0,0.00016986,2]
[383659662,1757075461848,-253.19122862,0.00016986,2]
[383659663,1757075461858,-678.74,0.00016986,2]
[383659664,1757075461869,-480.0,0.00016986,2]
[383659665,1757075461879,-480.0,0.00016986,2]
[383659666,1757075461889,-2044.8,0.00016986,2]
[383659667,1757075461899,-480.0,0.00016986,2]
[383659668,1757075461909,-2092.37,0.00016986,2]
[383659669,1757075461920,-480.0,0.00016986,2]
[383659670,1757075461931,-480.0,0.00016986,2]
[383659671,1757075461942,-994.51,0.00016986,2]
[383659672,1757075461960,-480.0,0.00016986,2]
[383659673,1757075461971,-26539.06,0.00016986,2]
[383659674,1757075461984,-480.0,0.00016986,2]
[383659675,1757075461996,-573.14,0.00016986,2]
[383659676,1757075462007,-594.29,0.00016986,2]
[383659677,1757075462018,-712.09,0.00016986,2]
[383659678,1757075462029,-480.0,0.00016986,2]
[383659679,1757075462040,-852.19,0.00016986,2]
[383659680,1757075462055,-613.91,0.00016986,2]
[383659681,1757075462066,-533.76,0.00016986,2]
[383659682,1757075462078,-1498.59,0.00016986,2]
[383659683,1757075462089,-953.92,0.00016986,2]
[383659684,1757075462101,-480.0,0.00016986,2]
[383659685,1757075462111,-480.0,0.00016986,2]
[383659686,1757075462123,-874.79,0.00016986,2]
[383659687,1757075462133,-1760.8,0.00016986,2]
[383659688,1757075462144,-480.0,0.00016986,2]
[383659689,1757075462157,-686.15,0.00016986,2]
[383659690,1757075462167,-480.0,0.00016986,2]
[383659691,1757075462178,-549.32,0.00016986,2]
[383659692,1757075462189,-480.0,0.00016986,2]
[383659693,1757075462200,-822.53,0.00016986,2]
[383659694,1757075462221,-670.03,0.00016986,2]
[383659695,1757075462232,-480.0,0.00016986,2]
[383659696,1757075462243,-1246.01,0.00016986,2]
[383659697,1757075462254,-1077.96,0.00016986,2]
[383659698,1757075462265,-4312.6,0.00016986,2]
[383659699,1757075462275,-6794.89177514,0.00017,7]
[383659700,1757075462286,-203.18701864,0.00017,7]
[383659701,1757075462297,-530.48792916,0.00017,7]
[383659702,1757075462307,-417.15472785,0.00017,7]
[383659703,1757075462317,-5001.0,0.000171,2]
[383659704,1757075462327,-497.0,0.0001726,2]
[383659705,1757075462337,-237.1977849,0.0001726,2]
[383659706,1757075462347,-480.0,0.0001726,2]
[383659707,1757075462358,-480.0,0.0001726,2]
[383659708,1757075462369,-219.78250589,0.0001726,2]
[383659709,1757075462381,-480.0,0.0001726,2]
[383659710,1757075462391,-480.0,0.0001726,2]
[383659711,1757075462402,-480.0,0.0001726,2]
[383659712,1757075462413,-1223.58,0.0001726,2]
[383659713,1757075462424,-999.05,0.0001726,2]
[383659714,1757075462436,-480.0,0.0001726,2]
[383659715,1757075462447,-671.71,0.0001726,2]
[383659716,1757075462469,-480.0,0.0001726,2]
[383659717,1757075462480,-678.74,0.0001726,2]
[383659718,1757075462490,-480.0,0.0001726,2]
[383659719,1757075462501,-480.0,0.0001726,2]
[383659720,1757075462511,-2044.8,0.0001726,2]
[383659721,1757075462522,-294.13347258,0.0001726,2]
[383659722,1757075462533,-2092.37,0.0001726,2]
[383659723,1757075462544,-480.0,0.0001726,2]
[383659724,1757075462556,-480.0,0.0001726,2]
[383659725,1757075462567,-994.51,0.0001726,2]
[383659726,1757075462577,-480.0,0.0001726,2]
[383659727,1757075462588,-2673.42316047,0.0001726,2]
[383659728,1757075515460,1000.0,0.00018595,20]
[383659729,1757075524619,3713.42450694,0.00013598,2]
[383659734,1757075702051,163.0751961,0.00013598,2]
[383659736,1757075972168,163.07519606,0.00013598,2]
[383659737,1757076116859,841.83623411,0.00027,120]
[383659742,1757076277398,163.07519606,0.00013598,2]
[383659820,1757076632704,-506.0,0.00013696,2]
[383659874,1757076633216,-382.52412077,0.00013696,2]
[383659877,1757076633228,-817.47587923,0.00013696,2]
[383659879,1757076633238,-300.0,0.00013696,2]
[383659881,1757076633247,-155.25281375,0.00013697,2]
[383659883,1757076633257,-203.05946922,0.00013697,2]
[383659885,1757076633266,-412.09264666,0.00013697,2]
[383659887,1757076633276,-464.93621391,0.00013697,2]
[383659889,1757076633285,-500.0,0.00013697,2]
[383659891,1757076633294,-500.0,0.00013697,2]
[383659893,1757076633304,-507.23776327,0.00013697,2]
[383659895,1757076633314,-500.0,0.00013697,2]
[383659897,1757076633323,-480.0,0.00013698,2]
[383659899,1757076633333,-480.0,0.00013698,2]
[383659901,1757076633341,-480.0,0.00013698,2]
[383659903,1757076633350,-480.0,0.00013698,2]
[383659905,1757076633360,-486.19925006,0.00013698,2]
[383659907,1757076633368,-480.0,0.00013698,2]
[383659909,1757076633378,-480.0,0.00013698,2]
[383659911,1757076633388,-480.0,0.00013698,2]
[383659912,1757076633397,-178.42,0.00013698,2]
[383659914,1757076633407,-480.0,0.00013698,2]
[383659917,1757076633417,-480.0,0.00013698,2]
[383659919,1757076633425,-480.0,0.00013698,2]
[383659920,1757076633435,-480.0,0.00013698,2]
[383659922,1757076633444,-480.0,0.00013698,2]
[383659924,1757076633454,-480.0,0.00013698,2]
[383659926,1757076633463,-480.0,0.00013698,2]
[383659928,1757076633473,-480.0,0.00013698,2]
[383659930,1757076633483,-480.0,0.00013698,2]
[383659932,1757076633492,-480.0,0.00013698,2]
[383659934,1757076633501,-480.0,0.00013698,2]
[383659936,1757076633510,-480.0,0.00013698,2]
[383659938,1757076633519,-480.0,0.00013698,2]
[383659940,1757076633529,-480.0,0.00013698,2]
[383659942,1757076633538,-480.0,0.00013698,2]
[383659944,1757076633548,-480.0,0.00013698,2]
[383659946,1757076633557,-480.0,0.00013698,2]
[383659948,1757076633566,-480.0,0.00013698,2]
[383659950,1757076633575,-309.93032833,0.00013698,2]
[383659952,1757076633585,-480.0,0.00013698,2]
[383659953,1757076633595,-480.0,0.00013698,2]
[383659954,1757076633605,-480.0,0.00013698,2]
[383659955,1757076633615,-480.0,0.00013698,2]
[383659956,1757076633625,-480.0,0.00013698,2]
[383659957,1757076633635,-480.0,0.00013698,2]
[383659958,1757076633645,-480.0,0.00013698,2]
[383659959,1757076633657,-480.0,0.00013698,2]
[383659960,1757076633667,-480.0,0.00013698,2]
[383659961,1757076633677,-480.0,0.00013698,2]
[383659962,1757076633687,-480.0,0.00013698,2]
[383659963,1757076633696,-480.0,0.00013698,2]
[383659964,1757076633706,-480.0,0.00013698,2]
[383659965,1757076633715,-480.0,0.00013698,2]
[383659966,1757076633725,-480.0,0.00013698,2]
[383659967,1757076633735,-480.0,0.00013698,2]
[383659968,1757076633745,-480.0,0.00013698,2]
[383659969,1757076633754,-500.0,0.00013698,2]
[383659970,1757076633763,-500.0,0.00013698,2]
[383659971,1757076633773,-411.95930605,0.00013698,2]
[383659972,1757076633783,-500.0,0.00013698,2]
[383659973,1757076633792,-500.0,0.00013698,2]
[383659974,1757076633803,-500.0,0.00013698,2]
[383659975,1757076633813,-500.0,0.00013698,2]
[383659976,1757076633822,-500.0,0.00013698,2]
[383659977,1757076633832,-614.59,0.00013698,2]
[383659978,1757076633842,-480.0,0.00013698,2]
[383659979,1757076633851,-480.0,0.00013698,2]
[383659980,1757076633860,-170.92,0.00013698,2]
[383659981,1757076633870,-480.0,0.00013698,2]
[383659982,1757076633879,-480.0,0.00013698,2]
[383659983,1757076633890,-480.0,0.00013698,2]
[383659984,1757076633899,-480.0,0.00013698,2]
[383659985,1757076633913,-480.0,0.00013698,2]
[383659986,1757076633923,-480.0,0.00013698,2]
[383659987,1757076633933,-230.21215721,0.00013698,2]
[383659988,1757076633945,-480.0,0.00013698,2]
[383659989,1757076633956,-480.0,0.00013698,2]
[383659990,1757076633965,-480.0,0.00013698,2]
[383659991,1757076633976,-480.0,0.00013698,2]
[383659992,1757076633986,-480.0,0.00013698,2]
[383659993,1757076633995,-480.0,0.00013698,2]
[383659994,1757076634005,-480.0,0.00013698,2]
[383659995,1757076634015,-480.0,0.00013698,2]
[383659996,1757076634024,-480.0,0.00013698,2]
[383659997,1757076634034,-480.0,0.00013698,2]
[383659998,1757076634044,-480.0,0.00013698,2]
[383659999,1757076634054,-480.0,0.00013698,2]
[383660000,1757076634063,-480.0,0.00013698,2]
[383660001,1757076634077,-480.0,0.00013698,2]
[383660002,1757076634086,-480.0,0.00013698,2]
[383660003,1757076634095,-480.0,0.00013698,2]
[383660004,1757076634105,-480.0,0.00013698,2]
[383660005,1757076634114,-480.0,0.00013698,2]
[383660006,1757076634123,-480.0,0.00013698,2]
[383660007,1757076634133,-480.0,0.00013698,2]
[383660008,1757076634143,-480.0,0.00013698,2]
[383660009,1757076634152,-480.0,0.00013698,2]
[383660010,1757076634166,-480.0,0.00013698,2]
[383660011,1757076634177,-166.3,0.00013698,2]
[383660012,1757076634188,-480.0,0.00013698,2]
[383660013,1757076634199,-480.0,0.00013698,2]
[383660014,1757076634209,-480.0,0.00013698,2]
[383660015,1757076634219,-480.0,0.00013698,2]
[383660016,1757076634230,-480.0,0.00013698,2]
[383660017,1757076634239,-480.0,0.00013698,2]
[383660018,1757076634249,-480.0,0.00013698,2]
[383660019,1757076634258,-480.0,0.00013698,2]
[383660020,1757076634267,-480.0,0.00013698,2]
[383660021,1757076634277,-480.0,0.00013698,2]
[383660022,1757076634286,-480.0,0.00013698,2]
[383660023,1757076634295,-480.0,0.00013698,2]
[383660024,1757076634305,-480.0,0.00013698,2]
[383660025,1757076634314,-211.58,0.00013698,2]
[383660026,1757076634323,-480.0,0.00013698,2]
[383660027,1757076634332,-480.0,0.00013698,2]
[383660028,1757076634342,-480.0,0.00013698,2]
[383660029,1757076634351,-480.0,0.00013698,2]
[383660030,1757076634361,-480.0,0.00013698,2]
[383660031,1757076634371,-480.0,0.00013698,2]